fUSD/lending_fUSD_20251120
["ID","MTS","AMOUNT","RATE_DAILY","PERIOD"]
[394511365,1763650246564,-154.95,0.00017983,2]
[394511368,1763650246575,-615373.87489391,0.00018,2]
[394511539,1763650268698,20673.51457795,0.00032,120]
[394511540,1763650272988,158.87047612,0.00016172,2]
[394511541,1763650273274,196.55943663,0.00016172,2]
[394511542,1763650291833,175.84,0.00026628,120]
[394511543,1763650292329,175.84,0.00029956,120]
[394511544,1763650293135,500.0,0.00016438,2]
[394511545,1763650293168,500.0,0.00016172,2]
[394511546,1763650293469,500.0,0.00016438,2]
[394511547,1763650293503,500.0,0.00016172,2]
[394511548,1763650293772,500.0,0.00016438,2]
[394511549,1763650293820,500.0,0.00016172,2]
[394511550,1763650294097,500.0,0.00016438,2]
[394511551,1763650294167,500.0,0.00016172,2]
[394511552,1763650294446,500.0,0.00016438,2]
[394511553,1763650294500,500.0,0.00016172,2]
[394511554,1763650294891,500.0,0.00016438,2]
[394511555,1763650294952,500.0,0.00016438,2]
[394511556,1763650294988,500.0,0.00016172,2]
[394511557,1763650295024,500.0,0.00016438,2]
[394511558,1763650295055,609.31990954,0.00016438,2]
[394511559,1763650296299,500.0,0.00016172,2]
[394511560,1763650296581,500.0,0.00016172,2]
[394511561,1763650296625,500.0,0.00016172,2]
[394511562,1763650296666,500.0,0.00016172,2]
[394511563,1763650296706,35.25017771,0.00016172,2]
[394511564,1763650296732,464.74982229,0.00016172,2]
[394511565,1763650296765,500.0,0.00016172,2]
[394511566,1763650296799,500.0,0.00016172,2]
[394511567,1763650296831,500.0,0.00016172,2]
[394511568,1763650296869,500.0,0.00016172,2]
[394511569,1763650296901,500.0,0.00016172,2]
[394511570,1763650296976,500.0,0.00016172,2]
[394511571,1763650297017,500.0,0.00016172,2]
[394511572,1763650297049,500.0,0.00016172,2]
[394511573,1763650297083,500.0,0.00016172,2]
[394511574,1763650297148,500.0,0.00016172,2]
[394511575,1763650297185,500.0,0.00016172,2]
[394511576,1763650297231,500.0,0.00016172,2]
[394511577,1763650297278,500.0,0.00016172,2]
[394511578,1763650297319,500.0,0.00016172,2]
[394511579,1763650297370,500.0,0.00016172,2]
[394511580,1763650297455,500.0,0.00016172,2]
[394511581,1763650297494,500.0,0.00016172,2]
[394511582,1763650297534,500.0,0.00016172,2]
[394511583,1763650297568,535.25017771,0.00016273,2]
[394511584,1763650297590,10000.0,0.00016273,2]
[394511585,1763650297656,500.0,0.00016172,2]
[394511586,1763650297724,500.0,0.00016172,2]
[394511587,1763650297786,500.0,0.00016172,2]
[394511588,1763650297849,192.13472678,0.00016172,2]
[394511589,1763650297903,307.86527322,0.00016172,2]
[394511590,1763650297967,500.0,0.00016172,2]
[394511591,1763650298038,500.0,0.00016172,2]
[394511592,1763650298102,500.0,0.00016172,2]
[394511593,1763650298169,500.0,0.00016172,2]
[394511594,1763650298234,294.0623054,0.00016172,2]
[394511595,1763650298302,500.0,0.00016172,2]
[394511596,1763650298368,500.0,0.00016172,2]
[394511597,1763650298434,500.0,0.00016172,2]
[394511598,1763650298498,500.0,0.00016172,2]
[394511599,1763650298563,500.0,0.00016172,2]
[394511600,1763650298625,500.0,0.00016172,2]
[394511601,1763650315953,500.0,0.00016172,2]
[394511602,1763650316051,500.0,0.00016172,2]
[394511603,1763650316146,500.0,0.00016172,2]
[394511604,1763650316242,500.0,0.00016172,2]
[394511605,1763650316339,500.0,0.00016172,2]
[394511606,1763650316436,500.0,0.00016172,2]
[394511607,1763650316531,500.0,0.00016172,2]
[394511608,1763650316613,500.0,0.00016172,2]
[394511609,1763650316716,398.08242138,0.00016172,2]
[394511610,1763650316802,101.91757862,0.00016172,2]
[394511611,1763650316897,500.0,0.00016172,2]
[394511612,1763650317001,500.0,0.00016172,2]
[394511613,1763650317099,500.0,0.00016172,2]
[394511614,1763650317197,500.0,0.00016172,2]
[394511615,1763650317292,500.0,0.00016172,2]
[394511616,1763650322157,-1321.67352229,0.00016273,2]
[394511617,1763650322179,-1000.0,0.00016273,2]
[394511618,1763650322200,-500.0,0.00016438,2]
[394511619,1763650322226,-500.0,0.00016973,2]
[394511620,1763650322247,-503.20529526,0.00016973,2]
[394511621,1763650322268,-500.0,0.00016973,2]
[394511622,1763650322294,-500.0,0.00016973,2]
[394511623,1763650322316,-500.0,0.00016973,2]
[394511624,1763650322338,-462.0,0.00017545,2]
[394511625,1763650322366,-1931.836,0.0001764,2]
[394511626,1763650322388,-173.896,0.0001764,2]
[394511627,1763650322412,-462.0,0.00017738,2]
[394511628,1763650322433,-509.4531013,0.000179,2]
[394511629,1763650322455,-220.96140505,0.000179,2]
[394511630,1763650322479,-300.0,0.00017999,2]
[394511631,1763650322504,-550.0,0.00017999,2]
[394511632,1763650322530,-41064.9746761,0.00018,2]
[394511633,1763650339739,-1719.40575842,0.00016173,2]
[394511634,1763650342607,-440.62953001,0.00016173,2]
[394511635,1763650345049,-487.7430067,0.00016173,2]
[394511636,1763650348042,-2751.0,0.00016173,2]
[394511637,1763650350866,-5930.53225722,0.00016173,2]
[394511638,1763650353245,-582.72433826,0.00016173,2]
[394511639,1763650355477,-9999.99,0.00016173,2]
[394511640,1763650359334,-310.0,0.00016173,2]
[394511641,1763650361631,-235.7783164,0.00016173,2]
[394511642,1763650364649,-249.99999984,0.00016173,2]
[394511643,1763650366924,-635.28716866,0.00016173,2]
[394511644,1763650367158,456.0,0.00016172,2]
[394511645,1763650369236,-2544.39609173,0.00016173,2]
[394511646,1763650371769,-8382.86776369,0.00016173,2]
[394511647,1763650375562,-438.0,0.00016173,2]
[394511648,1763650379479,-511.32968749,0.00016173,2]
[394511649,1763650382476,-501.59027207,0.00016173,2]
[394511650,1763650382685,300.0,0.00016172,2]
[394511651,1763650386390,-2889.56400954,0.00016173,2]
[394511652,1763650390402,-200.00008818,0.00016173,2]
[394511653,1763650393920,-488.67031251,0.00016173,2]
[394511654,1763650395747,204.0253309,0.00016073,2]
[394511655,1763650398467,-200.0,0.00016173,2]
[394511656,1763650400884,-280.4614,0.00016173,2]
[394511657,1763650408237,-390.48947352,0.00016173,2]
[394511658,1763650410031,-237.439822,0.00016173,2]
[394511659,1763650414440,-206.995667,0.00016173,2]
[394511660,1763650415673,4485.44673729,0.00016073,2]
[394511661,1763650416563,-161000.0,0.00016173,2]
[394511662,1763650418001,-300.0,0.00016173,2]
[394511663,1763650420396,-187.89724431,0.00016173,2]
[394511664,1763650423130,-300.0,0.00016173,2]
[394511665,1763650426110,-300.0,0.00016173,2]
[394511666,1763650429086,-300.0,0.00016173,2]
[394511667,1763650431864,500.0,0.00016172,2]
[394511668,1763650431917,296.20257369,0.00016172,2]
[394511669,1763650431978,500.0,0.00016172,2]
[394511670,1763650432036,172.08188116,0.00016172,2]
[394511671,1763650432898,-500.0,0.00016173,2]
[394511672,1763650435687,-1200.0,0.00016173,2]
[394511673,1763650438422,-611.98981445,0.00016173,2]
[394511674,1763650439798,454.0,0.000161,2]
[394511675,1763650441217,-159.30343058,0.00016173,2]
[394511676,1763650442896,30.33589834,0.00016172,2]
[394511677,1763650442952,269.66410166,0.00016172,2]
[394511678,1763650443006,550.0,0.00016172,2]
[394511679,1763650443301,300.0,0.00016172,2]
[394511680,1763650443386,-1200.0,0.00016173,2]
[394511682,1763650446043,500.0,0.00016172,2]
[394511683,1763650446459,-300.0,0.00016173,2]
[394511687,1763650475771,180.53071325,0.00016073,2]
[394511688,1763650481407,8199.81518509,0.00016091,2]
[394511689,1763650481455,7823.43389391,0.00016091,2]
[394511690,1763650501688,300.0,0.00016172,2]
[394511691,1763650501811,300.0,0.00016172,2]
[394511692,1763650501869,1200.0,0.00016172,2]
[394511693,1763650515734,-553025.91454742,0.00016173,2]
[394511694,1763650515761,-250.0,0.00016173,2]
[394511695,1763650515783,-2681.26064311,0.00016173,2]
[394511696,1763650515804,-250.0,0.00016233,2]
[394511697,1763650515826,-67902.0369,0.00016272,2]
[394511698,1763650515846,-280.4614,0.00016272,2]
[394511699,1763650515868,-1000.0,0.00016273,2]
[394511700,1763650515889,-2500.0,0.00016273,2]
[394511701,1763650515909,-1456.2892,0.00016273,2]
[394511702,1763650515930,-4485.44673727,0.00016276,2]
[394511703,1763650515951,-2681.26064308,0.00016365,2]
[394511704,1763650515971,-500.0,0.00016438,2]
[394511705,1763650515994,-181.43620188,0.00016438,2]
[394511706,1763650516016,-4485.44673727,0.00016479,2]
[394511707,1763650516046,-2681.26064308,0.00016557,2]
[394511708,1763650516069,-4485.44673727,0.00016682,2]
[394511709,1763650516089,-2681.26064308,0.00016749,2]
[394511710,1763650516109,-4485.44673727,0.00016885,2]
[394511711,1763650516131,-2681.26064308,0.00016941,2]
[394511712,1763650516151,-150.0,0.00016954,2]
[394511713,1763650516172,-4485.44673727,0.00017088,2]
[394511714,1763650516193,-2681.26064308,0.00017132,2]
[394511715,1763650516215,-9999.99,0.00017132,2]
[394511716,1763650516236,-935.0,0.00017287,2]
[394511717,1763650516258,-4485.44673727,0.00017291,2]
[394511718,1763650516280,-2681.26064308,0.00017324,2]
[394511719,1763650516303,-999.99,0.00017324,2]
[394511720,1763650516327,-462.0,0.00017404,2]
[394511721,1763650516349,-4485.44673727,0.00017494,2]
[394511722,1763650516374,-2681.26064308,0.00017516,2]
[394511723,1763650516396,-300.0,0.00017678,2]
[394511724,1763650516417,-420.0,0.00017678,2]
[394511725,1763650516447,-4485.44673727,0.00017697,2]
[394511726,1763650516481,-2681.26064308,0.00017708,2]
[394511727,1763650516505,-462.0,0.00017756,2]
[394511728,1763650516529,-1680.0,0.00017766,2]
[394511729,1763650516552,-300.0,0.0001779,2]
[394511730,1763650516574,-300.0,0.0001779,2]
[394511731,1763650516596,-300.0,0.0001779,2]
[394511732,1763650516620,-300.0,0.0001779,2]
[394511733,1763650516643,-300.0,0.0001779,2]
[394511734,1763650516665,-250.0,0.0001779,2]
[394511735,1763650516688,-2681.26064308,0.000179,2]
[394511736,1763650516722,-4485.44673727,0.000179,2]
[394511737,1763650516744,-159.86537393,0.000179,2]
[394511738,1763650516766,-1000.0,0.000179,2]
[394511739,1763650516791,-462.0,0.00017909,2]
[394511740,1763650516815,-462.0,0.00017939,2]
[394511741,1763650516836,-500.0,0.00017973,2]
[394511742,1763650516858,-500.0,0.00017973,2]
[394511743,1763650516886,-500.0,0.00017973,2]
[394511744,1763650516907,-162.26120366,0.00017973,2]
[394511745,1763650516929,-500.0,0.00017973,2]
[394511746,1763650516951,-500.0,0.00017973,2]
[394511747,1763650516974,-23567.12810685,0.00018,2]
[394511748,1763650533689,376.57610609,0.00016172,2]
[394511749,1763650533752,123.42389391,0.00016172,2]
[394511750,1763650533828,308.56686547,0.00016172,2]
[394511751,1763650536075,2304.85879458,0.00016172,2]
[394511752,1763650549471,-237.439822,0.00017312,2]
[394511753,1763650549495,-700.0,0.000175,6]
[394511754,1763650549518,-1400.0,0.000176,6]
[394511755,1763650549542,-2200.0,0.000177,6]
[394511756,1763650549562,-220.96140505,0.000179,2]
[394511757,1763650549584,-15583.2024,0.000179,2]
[394511758,1763650549604,-2500.0,0.000179,2]
[394511759,1763650549626,-339.63540086,0.000179,2]
[394511760,1763650549654,-500.0,0.00017973,2]
[394511761,1763650549677,-722318.76097209,0.00018,2]
[394511762,1763650585129,-1737.0,0.00017411,2]
[394511763,1763650585151,-493.34280791,0.0001764,2]
[394511764,1763650585175,-300.0,0.0001772,2]
[394511765,1763650585196,-2900.0,0.000178,6]
[394511766,1763650585217,-300.0,0.0001789,2]
[394511767,1763650585239,-300.0,0.0001789,2]
[394511768,1763650585260,-300.0,0.0001789,2]
[394511769,1763650585282,-1737.0,0.0001789,2]
[394511770,1763650585303,-3600.0,0.000179,6]
[394511771,1763650585323,-159.80558995,0.000179,2]
[394511772,1763650585343,-159.86537393,0.000179,2]
[394511773,1763650585364,-300.0,0.00017999,2]
[394511774,1763650585386,-168712.98622821,0.00018,2]
[394511775,1763650596744,500.0,0.00016172,2]
[394511776,1763650597042,500.0,0.00016172,2]
[394511777,1763650597282,500.0,0.00016172,2]
[394511778,1763650666266,162.17,0.00015438,2]
[394511779,1763650700458,1054.24,0.00015735,2]
[394511781,1763650816407,500.0,0.00016172,2]
[394511782,1763650816674,500.0,0.00016172,2]
[394511789,1763650969211,250.0,0.00015735,2]
[394511791,1763651000291,4625257.3545084,0.00032877,120]
[394511794,1763651026037,166.66,0.00014948,2]
[394511795,1763651026261,166.66,0.00015263,2]
[394511796,1763651026491,166.66,0.00015577,2]
[394511797,1763651026717,166.66,0.00015892,2]
[394511802,1763651169201,1000.0,0.00015735,2]
[394511803,1763651207180,150.0,0.00015735,2]
[394511804,1763651207388,150.0,0.00015735,120]
[394511805,1763651247431,500.0,0.00017,30]
[394511806,1763651248064,500.0,0.00017,30]
[394511807,1763651248178,500.0,0.00017,30]
[394511808,1763651248600,665.20669713,0.00017,30]
[394511809,1763651250437,500.0,0.00017,30]
[394511810,1763651250904,500.0,0.00017,30]
[394511811,1763651251268,500.0,0.00017,30]
[394511812,1763651251638,500.0,0.00017,30]
[394511813,1763651251978,500.0,0.00017,30]
[394511814,1763651252363,500.0,0.00017,30]
[394511815,1763651252697,500.0,0.00017,30]
[394511816,1763651253116,744.13725885,0.00017,30]
[394511868,1763651432164,-166.66,0.00016207,2]
[394511869,1763651432175,-166.66,0.00016521,2]
[394511870,1763651432186,-300.0,0.00016716,2]
[394511871,1763651432197,-215.66716771,0.00016716,2]
[394511873,1763651432210,-84.33283229,0.00016716,2]
[394511875,1763651432221,-300.0,0.00016716,2]
[394511876,1763651432232,-150.0,0.00016827,2]
[394511877,1763651432242,-1000.0,0.00017,2]
[394511878,1763651432253,-118.20851381,0.00017,2]
[394511879,1763651432266,-131.79148619,0.00017,2]
[394511880,1763651432276,-881.66830445,0.00017023,2]
[394511881,1763651432288,-318.33169555,0.00017023,2]
[394511882,1763651432298,-277.50820473,0.00017024,2]
[394511883,1763651432311,-313.38798074,0.00017024,2]
[394511884,1763651432328,-609.10381453,0.00017024,2]
[394511885,1763651432345,-300.0,0.00017024,2]
[394511886,1763651432355,-217.45237461,0.00017025,2]
[394511887,1763651432374,-62.54762539,0.00017025,2]
[394511888,1763651432383,-550.0,0.00017026,2]
[394511889,1763651432393,-8957.9356998,0.00017027,2]
[394511890,1763651432410,-3139.43452384,0.00017027,2]
[394511891,1763651432426,-1019.84985827,0.00017027,2]
[394511892,1763651432499,-5519.81133792,0.00017027,2]
[394511934,1763651438212,-66.27430007,0.00017027,2]
[394511935,1763651438228,-1119.12251116,0.00017027,2]
[394511936,1763651438378,-313.32342637,0.00017027,2]
[394511937,1763651438395,-49892.82834257,0.00017027,2]
[394511938,1763651438407,-300.0,0.00017105,2]
[394511939,1763651438418,-300.0,0.000175,6]
[394511940,1763651438429,-222.41932101,0.00017578,2]
[394511941,1763651438440,-600.0,0.000176,6]
[394511943,1763651438451,-300.0,0.00017639,2]
[394511946,1763651438462,-300.0,0.00017643,2]
[394511947,1763651438473,-300.0,0.00017649,2]
[394511948,1763651438484,-300.0,0.0001765,2]
[394511949,1763651438496,-300.0,0.00017653,2]
[394511950,1763651438507,-300.0,0.00017653,2]
[394511951,1763651438518,-300.0,0.00017653,2]
[394511952,1763651438529,-300.0,0.00017659,2]
[394511953,1763651438540,-300.0,0.00017661,2]
[394511954,1763651438550,-300.0,0.00017666,2]
[394511955,1763651438561,-300.0,0.00017674,2]
[394511957,1763651438573,-300.0,0.00017678,2]
[394511959,1763651438582,-900.0,0.000177,6]
[394511962,1763651438598,-1000.0,0.00017702,2]
[394511963,1763651438608,-300.0,0.00017703,2]
[394511964,1763651438619,-300.0,0.00017704,2]
[394511965,1763651438629,-300.0,0.00017704,2]
[394511966,1763651438640,-300.0,0.00017726,2]
[394511967,1763651438651,-300.0,0.00017729,2]
[394511968,1763651438662,-300.0,0.00017731,2]
[394511969,1763651438672,-369.081,0.00017733,2]
[394511970,1763651438684,-300.0,0.00017738,2]
[394511971,1763651438695,-300.0,0.00017739,2]
[394511972,1763651438706,-300.0,0.00017744,2]
[394511973,1763651438717,-300.0,0.00017745,2]
[394511974,1763651438727,-300.0,0.00017745,2]
[394511975,1763651438738,-300.0,0.00017748,2]
[394511976,1763651438748,-300.0,0.00017751,2]
[394511977,1763651438759,-300.0,0.00017752,2]
[394511978,1763651438770,-300.0,0.00017758,2]
[394511979,1763651438780,-300.0,0.00017763,2]
[394511980,1763651438790,-300.0,0.00017766,2]
[394511981,1763651438801,-300.0,0.00017768,2]
[394511982,1763651438812,-300.0,0.00017772,2]
[394511983,1763651438823,-300.0,0.00017774,2]
[394511984,1763651438833,-1000.0,0.00017779,2]
[394511985,1763651438846,-300.0,0.00017786,2]
[394511986,1763651438856,-300.0,0.00017787,2]
[394511987,1763651438867,-300.0,0.0001779,2]
[394511988,1763651438878,-300.0,0.0001779,2]
[394511989,1763651438888,-300.0,0.00017791,2]
[394511990,1763651438899,-160.0,0.000178,3]
[394511991,1763651438909,-1369.29180436,0.000178,2]
[394511992,1763651438919,-2280.12349621,0.000178,2]
[394511993,1763651438930,-2500.0,0.000178,2]
[394511994,1763651438940,-209.39824923,0.000178,2]
[394511995,1763651438955,-1200.0,0.000178,6]
[394511996,1763651438965,-300.0,0.00017807,2]
[394511997,1763651438976,-1369.29180427,0.00017811,2]
[394511998,1763651438986,-2280.1234962,0.00017811,2]
[394511999,1763651438997,-300.0,0.00017818,2]
[394512000,1763651439008,-1865.58036,0.0001782,2]
[394512001,1763651439019,-1369.29180427,0.00017822,2]
[394512002,1763651439029,-2280.1234962,0.00017822,2]
[394512003,1763651439040,-300.0,0.00017825,2]
[394512004,1763651439052,-300.0,0.00017827,2]
[394512005,1763651439063,-300.0,0.00017827,2]
[394512006,1763651439073,-300.0,0.00017829,2]
[394512007,1763651439084,-300.0,0.00017829,2]
[394512008,1763651439096,-300.0,0.00017832,2]
[394512009,1763651439106,-1369.29180427,0.00017833,2]
[394512010,1763651439117,-365.24216189,0.00017833,2]
[394512011,1763651439143,-425.78385126,0.00017833,2]
[394512013,1763651440945,-0.00329612,0.00017833,2]
[394512014,1763651440958,-1489.09418693,0.00017833,2]
[394512015,1763651440969,-300.0,0.00017838,2]
[394512016,1763651440981,-325.97619083,0.00017839,2]
[394512017,1763651440991,-257.0,0.00017839,2]
[394512018,1763651441002,-300.0,0.00017842,2]
[394512019,1763651441013,-1369.29180427,0.00017844,2]
[394512020,1763651441024,-2280.1234962,0.00017844,2]
[394512021,1763651441036,-370.70940116,0.00017845,2]
[394512022,1763651441046,-1369.29180427,0.00017856,2]
[394512023,1763651441057,-2280.1234962,0.00017856,2]
[394512024,1763651441068,-1369.29180427,0.00017867,2]
[394512025,1763651441079,-2280.1234962,0.00017867,2]
[394512026,1763651441089,-300.0,0.00017868,2]
[394512027,1763651441102,-500.0,0.00017873,2]
[394512028,1763651441112,-500.0,0.00017873,2]
[394512029,1763651441122,-161.97608416,0.00017873,2]
[394512030,1763651441134,-309.68767794,0.00017873,2]
[394512031,1763651441145,-163.17014768,0.00017873,2]
[394512032,1763651441156,-408.37583204,0.00017873,2]
[394512033,1763651441166,-440.38709243,0.00017873,2]
[394512034,1763651441177,-300.0,0.00017873,2]
[394512035,1763651441187,-300.0,0.00017876,2]
[394512036,1763651441198,-1369.29180427,0.00017878,2]
[394512037,1763651441207,-2280.1234962,0.00017878,2]
[394512038,1763651441218,-638.75,0.00017878,2]
[394512039,1763651441228,-300.0,0.00017879,2]
[394512040,1763651441238,-300.0,0.00017886,2]
[394512041,1763651441248,-300.0,0.00017888,2]
[394512042,1763651441258,-1369.29180427,0.00017889,2]
[394512043,1763651441268,-2280.1234962,0.00017889,2]
[394512044,1763651441278,-300.0,0.00017889,2]
[394512045,1763651441288,-300.0,0.0001789,2]
[394512046,1763651441298,-300.0,0.00017892,2]
[394512047,1763651441308,-500.0,0.00017899,2]
[394512048,1763651441319,-277.17743267,0.00017899,2]
[394512049,1763651441332,-500.0,0.00017899,2]
[394512050,1763651441344,-172.14262433,0.00017899,2]
[394512051,1763651441354,-500.0,0.00017899,2]
[394512052,1763651441364,-500.0,0.00017899,2]
[394512053,1763651441376,-500.0,0.00017899,2]
[394512054,1763651441386,-500.0,0.00017899,2]
[394512055,1763651441397,-500.0,0.00017899,2]
[394512056,1763651441411,-500.0,0.00017899,2]
[394512057,1763651441421,-500.0,0.00017899,2]
[394512058,1763651441431,-760000.0,0.000179,2]
[394512059,1763651441442,-160.0,0.000179,2]
[394512060,1763651441452,-1000.0,0.000179,2]
[394512061,1763651441462,-166.16111139,0.000179,2]
[394512062,1763651441472,-6102.58199226,0.000179,3]
[394512063,1763651441483,-1369.29180427,0.000179,2]
[394512064,1763651441495,-1500.0,0.000179,6]
[394512065,1763651441505,-315.5774945,0.000179,2]
[394512066,1763651441516,-633.98608162,0.000179,2]
[394512067,1763651441527,-2280.1234962,0.000179,2]
[394512068,1763651441537,-300.0,0.000179,2]
[394512069,1763651441547,-300.0,0.00017901,2]
[394512070,1763651441558,-300.0,0.00017902,2]
[394512071,1763651441568,-300.0,0.00017904,2]
[394512072,1763651441578,-300.0,0.00017905,2]
[394512073,1763651441588,-1865.58036,0.0001793,2]
[394512074,1763651441600,-300.0,0.00017937,2]
[394512075,1763651441610,-300.0,0.00017942,2]
[394512076,1763651441620,-300.0,0.00017958,2]
[394512077,1763651441630,-300.0,0.00017971,2]
[394512078,1763651441641,-500.0,0.00017973,2]
[394512079,1763651441651,-367.43650363,0.00017973,2]
[394512080,1763651441662,-502.10718948,0.00017973,2]
[394512081,1763651441672,-501.23436494,0.00017973,2]
[394512082,1763651441683,-228.77234087,0.00017973,2]
[394512083,1763651441694,-503.55891604,0.00017973,2]
[394512084,1763651441704,-151.52945777,0.00017973,2]
[394512085,1763651441714,-500.49832064,0.00017973,2]
[394512086,1763651441725,-481.70785925,0.00017973,2]
[394512087,1763651441735,-500.0,0.00017973,2]
[394512088,1763651441745,-501.25798024,0.00017973,2]
[394512089,1763651441757,-865.5483888,0.00017986,2]
[394512090,1763651441767,-660.92540704,0.0001799,2]
[394512091,1763651441778,-660.92540704,0.0001799,2]
[394512092,1763651441788,-151.0,0.00017997,2]
[394512093,1763651441799,-500.0,0.00017999,2]
[394512094,1763651441808,-500.0,0.00017999,2]
[394512095,1763651441818,-491.36819945,0.00017999,2]
[394512096,1763651441828,-1960112.66023453,0.00018,2]
[394512101,1763651446415,-364.58891468,0.00018,2]
[394512102,1763651446955,-503.81075855,0.00018,2]
[394512103,1763651447189,-3591.51499074,0.00018,2]
[394512104,1763651447212,-244.73703391,0.00018,2]
[394512105,1763651447225,-264.20480772,0.00018,2]
[394512143,1763651530246,1421.56,0.00015735,2]
[394512177,1763651661184,255.91,0.00015735,2]
[394512178,1763651694125,195.79,0.00015735,2]
[394512180,1763651721855,-500.0,0.00019799,10]
[394512181,1763651721880,-500.0,0.00019799,10]
[394512182,1763651883564,3001.86,0.00015735,2]
[394512183,1763651962330,6998.15,0.00015735,2]
[394512184,1763651962410,10000.01,0.00015735,2]
[394512185,1763651962474,10000.01,0.00015735,2]
[394512186,1763651962543,7811.31,0.00015735,2]
[394512187,1763652026877,2036.42,0.00015735,2]
[394512188,1763652057199,4687.95,8.304e-05,2]
[394512189,1763652057446,3275.64,8.741e-05,2]
[394512190,1763652057498,1412.31,8.741e-05,2]
[394512191,1763652057682,4687.95,9.178e-05,2]
[394512192,1763652057908,3899.75,9.615e-05,2]
[394512193,1763652057969,788.2,9.615e-05,2]
[394512194,1763652058140,4687.95,0.00010052,2]
[394512195,1763652058384,4523.86,0.00010489,2]
[394512196,1763652058413,164.09,0.00010489,2]
[394512197,1763652058605,4687.95,0.00010926,2]
[394512198,1763652058883,4687.95,0.00011363,2]
[394512199,1763652059267,4687.95,0.000118,2]
[394512200,1763652059547,4687.95,0.00012237,2]
[394512201,1763652059774,4687.95,0.00012674,2]
[394512202,1763652060013,4687.95,0.00013111,2]
[394512203,1763652060246,4687.95,0.00013548,2]
[394512204,1763652060521,4687.95,0.00013985,2]
[394512205,1763652061040,4687.95,0.00014422,2]
[394512206,1763652061282,4687.95,0.00014859,2]
[394512207,1763652061459,4687.95,0.00015296,2]
[394512208,1763652061702,4687.95,0.00015734,2]
[394512209,1763652061920,4687.95,0.00016171,2]
[394512212,1763652166219,161.92,0.00016,2]
[394512214,1763652265295,-500.0,0.00016426,2]
[394512215,1763652265319,-256.9970583,0.00016508,2]
[394512216,1763652265343,-200.0,0.0001654,2]
[394512217,1763652265367,-4687.95,0.00016608,2]
[394512218,1763652265391,-300.0,0.00016608,2]
[394512219,1763652265414,-150.0,0.00016609,2]
[394512220,1763652265439,-300.0,0.00016739,2]
[394512221,1763652265462,-300.0,0.00016739,2]
[394512222,1763652265486,-500.0,0.00016825,2]
[394512223,1763652265509,-308.0,0.00016825,2]
[394512224,1763652265534,-300.0,0.00016826,2]
[394512225,1763652265561,-2500.0,0.00016827,2]
[394512226,1763652265585,-1200.0,0.00016861,2]
[394512227,1763652265613,-361.82642384,0.00016873,2]
[394512228,1763652265637,-243.67205165,0.00016873,2]
[394512229,1763652265662,-151.0,0.00016916,2]
[394512230,1763652265686,-151.0,0.00016916,2]
[394512231,1763652265712,-151.0,0.00016916,2]
[394512232,1763652265736,-151.0,0.00016916,2]
[394512233,1763652265760,-151.0,0.00016916,2]
[394512234,1763652265789,-151.0,0.00016916,2]